bitfinex/quotes_ETHUSD_20240530
["timestamp","ask_amount","ask_price","bid_price","bid_amount"]
[1717032671701,0.57424975,3768.7,3767.9,2.65397]
[1717032671898,2.2551,3768.8,3768.0,1.29789222]
[1717032675491,4.90852,3768.8,3768.0,1.29789222]
[1717032677335,4.90852,3768.8,3767.5,2.65426]
[1717032677483,5.03000851,3768.8,3767.6,1.29789222]
[1717032677838,2.65362,3768.5,3767.6,1.29789222]
[1717032682181,1.932,3768.3,3766.5,2.65493]
[1717032682382,2.3179,3768.6,3766.7,3.95271222]
[1717032682619,2.65379,3768.2,3766.7,3.95271222]
[1717032682788,2.65379,3768.2,3767.0,2.65458]
[1717032682987,0.57433102,3768.5,3767.0,3.95247222]
[1717032682988,2.654,3767.9,3767.0,3.95247222]
[1717032688527,2.65425,3767.6,3766.2,2.93102852]
[1717032688712,2.65425,3767.6,3766.4,2.65504]
[1717032688898,2.65425,3767.6,3766.5,1.29789222]
[1717032690906,0.57444682,3767.7,3766.5,1.29789222]
[1717032691109,2.65424,3767.6,3766.6,2.6549]
[1717032691426,2.65424,3767.6,3766.7,1.29789222]
[1717032691658,2.65424,3767.6,3766.8,0.39527922]
[1717032691931,2.65424,3767.6,3766.9,1.29789222]
[1717032696345,0.805,3767.5,3766.9,1.29789222]
[1717032698745,2.65424,3767.6,3766.9,1.29789222]
[1717032698947,3.45924,3767.6,3766.9,1.29789222]
[1717032700260,2.65424,3767.6,3766.9,1.81319936]
[1717032702369,2.65424,3767.6,3766.9,1.29789222]
[1717032705486,2.3362,3767.8,3767.0,0.805]
[1717032705764,2.65395,3768.0,3767.1,1.29789222]
[1717032705765,0.57438285,3767.9,3767.1,1.29789222]
[1717032706855,0.57435345,3767.9,3767.1,1.29789222]
[1717032707565,0.805,3767.8,3767.1,1.29789222]
[1717032709469,2.65414,3767.7,3767.1,1.29789222]
[1717032709672,3.22849345,3767.7,3767.1,1.90530944]
[1717032710038,0.57435345,3767.6,3767.1,1.90530944]
[1717032710257,2.65414,3767.7,3767.1,1.90530944]
[1717032713080,2.65414,3767.7,3766.9,2.65468]
[1717032713280,2.65414,3767.7,3767.0,1.29789222]
[1717032713482,3.22849345,3767.7,3767.0,1.29789222]
[1717032713845,2.65414,3767.7,3767.0,1.29789222]
[1717032714044,2.65414,3767.7,3767.1,0.805]
[1717032714245,2.65414,3767.7,3767.2,1.29789222]
[1717032714447,2.65414,3767.7,3767.3,0.805]
[1717032714684,2.65414,3767.7,3767.3,1.29789222]
[1717032716732,3.22849345,3767.7,3767.3,1.29789222]
[1717032716978,2.65414,3767.7,3767.3,1.29789222]
[1717032721883,2.65414,3767.7,3766.8,2.65475]
[1717032722201,2.65414,3767.7,3767.0,0.805]
[1717032722374,2.65414,3767.7,3767.1,1.29789222]
[1717032725280,2.3136,3767.6,3767.1,1.29789222]
[1717032725567,2.88797467,3767.6,3767.1,1.29789222]
[1717032726123,0.805,3767.5,3766.3,2.65506]
[1717032726300,2.6545,3767.2,3766.4,2.27785481]
[1717032726482,2.4917,3767.1,3766.4,1.29789222]
[1717032726687,3.06607467,3767.1,3766.4,1.29789222]
[1717032727332,3.06607467,3767.1,3766.4,2.10289222]
[1717032728982,2.65463,3767.0,3766.4,1.29789222]
[1717032729326,3.22900467,3767.0,3766.4,2.10289222]
[1717032729485,3.22900467,3767.0,3766.4,1.29789222]
[1717032730325,3.22900467,3767.0,3766.4,1.50818144]
[1717032730811,3.22900467,3767.0,3766.5,0.805]
[1717032730980,3.22900467,3767.0,3766.5,1.29789222]
[1717032731497,2.65463,3767.0,3766.5,1.29789222]
[1717032732309,3.22913128,3767.0,3766.5,1.29789222]
[1717032732514,2.65463,3767.0,3766.5,1.52921036]
[1717032733030,2.65463,3767.0,3766.1,0.805]
[1717032733321,2.65463,3767.0,3766.2,1.29789222]
[1717032733524,3.22916023,3767.0,3766.2,1.29789222]
[1717032733893,2.65493,3766.6,3766.0,0.805]
[1717032734083,2.65493,3766.6,3766.0,1.29789222]
[1717032734283,2.65493,3766.6,3766.0,2.37874523]
[1717032740022,2.4187,3766.5,3766.0,1.57374523]
[1717032745744,2.3307,3766.9,3766.2,0.805]
[1717032745954,2.6544,3767.4,3766.6,0.805]
[1717032746255,2.6544,3767.4,3766.7,1.29789222]
[1717032749145,2.6544,3767.4,3767.0,0.805]
[1717032749349,0.57443857,3767.6,3767.2,0.805]
[1717032749516,2.6541,3767.8,3767.2,2.10289222]
[1717032749848,2.6541,3767.8,3767.4,0.805]
[1717032750449,2.6541,3767.8,3767.2,1.29789222]
[1717032750811,0.57443857,3768.0,3767.2,1.29789222]
[1717032751011,1.37943857,3768.1,3767.2,1.29789222]
[1717032751948,1.37943857,3768.1,3767.3,0.805]
[1717032753052,0.57443857,3768.1,3767.3,0.805]
[1717032753749,2.65394,3768.0,3767.3,0.805]
[1717032756154,2.65394,3768.0,3767.3,1.28074822]
[1717032756373,0.57435773,3768.1,3767.5,0.805]
[1717032756521,2.4824,3768.2,3767.5,0.805]
[1717032757760,3.2874,3768.2,3767.4,1.29789222]
[1717032759122,2.4824,3768.2,3767.4,1.29789222]
[1717032759341,3.05675182,3768.2,3767.5,0.25786404]
[1717032759931,2.4824,3768.2,3767.5,0.25786404]
[1717032760220,3.05675078,3768.2,3767.5,0.25786404]
[1717032760429,2.4824,3768.2,3767.5,0.25786404]
[1717032763957,2.65387,3768.1,3767.5,0.25786404]
[1717032766429,2.65387,3768.1,3767.4,1.29789222]
[1717032767451,0.12148851,3768.8,3767.7,1.29789222]
[1717032767654,9.787,3769.3,3768.2,2.65375]
[1717032767655,0.57431176,3769.2,3768.2,2.65375]
[1717032767840,5.06005,3769.3,3768.7,0.805]
[1717032769831,3.0,3769.8,3768.9,0.805]
[1717032769832,2.316,3769.7,3768.9,0.805]
[1717032770151,2.316,3769.7,3769.1,0.805]
[1717032771070,2.316,3769.7,3768.9,2.10289222]
[1717032772838,2.316,3769.7,3768.9,1.29789222]
[1717032773181,2.316,3769.7,3768.9,2.10289222]
[1717032773491,2.316,3769.7,3768.9,2.57851744]
[1717032773640,2.65272,3769.8,3769.0,1.29789222]
[1717032774295,2.65272,3769.8,3769.1,0.805]
[1717032777466,2.65272,3769.8,3769.4,0.805]
[1717032777682,2.3323,3770.1,3768.3,2.65369]
[1717032777683,2.65294,3769.4,3768.3,2.65369]
[1717032777862,3.1662,3769.3,3768.4,0.805]
[1717032778178,3.1662,3769.3,3768.5,0.345869]
[1717032778609,3.1662,3769.3,3767.6,1.3166]
[1717032778610,3.1662,3769.3,3767.9,2.65398]
[1717032778904,3.1662,3769.3,3768.2,0.805]
[1717032779395,2.65335,3768.9,3768.2,0.805]
[1717032779599,2.65335,3768.9,3768.4,0.805]
[1717032780201,2.65335,3768.9,3767.9,2.65398]
[1717032780507,2.65335,3768.9,3768.3,0.805]
[1717032781963,2.65335,3768.9,3768.0,0.265398]
[1717032782207,2.65335,3768.9,3768.4,0.805]
[1717032783405,4.96907,3768.5,3767.5,2.65425]
[1717032783696,4.96907,3768.5,3767.8,0.805]
[1717032785517,4.96907,3768.5,3767.6,1.29789222]
[1717032785718,4.96907,3768.5,3767.9,0.805]
[1717032788331,4.96907,3768.5,3767.8,0.805]
[1717032792663,4.96907,3768.5,3767.1,3.97113]
[1717032792850,4.96907,3768.5,3767.9,0.805]
[1717032796680,4.96907,3768.5,3768.1,0.805]
[1717032797481,4.96907,3768.5,3768.3,0.805]
[1717032799169,2.65357,3768.5,3768.3,0.805]
[1717032803063,2.457,3768.8,3768.3,0.805]
[1717032804993,2.4447,3769.2,3768.7,0.805]
[1717032805315,2.4447,3769.2,3768.5,0.805]
[1717032806108,2.4447,3769.2,3768.0,2.65389]
[1717032806266,2.4447,3769.2,3768.3,0.805]
[1717032806957,2.65338,3768.8,3768.3,0.805]
[1717032808955,2.65338,3768.8,3768.1,0.805]
[1717032810285,2.65338,3768.8,3768.3,0.805]
[1717032811290,5.09781,3769.2,3768.3,0.805]
[1717032812359,5.09781,3769.2,3768.3,3.4587]
[1717032812559,5.09781,3769.2,3768.4,0.34587]
[1717032813358,2.65324,3769.0,3767.9,2.65396]
[1717032813696,2.65324,3769.0,3768.1,0.805]
[1717032816365,2.6536,3768.5,3767.8,0.805]
[1717032818986,2.65332,3768.9,3768.3,0.805]
[1717032820106,2.65332,3768.9,3768.3,1.15089]
[1717032820300,2.3472,3769.2,3768.3,1.15089]
[1717032820503,2.3472,3769.2,3768.5,0.805]
[1717032822790,2.3472,3769.2,3768.7,0.805]
[1717032823106,2.3472,3769.2,3768.5,3.45856]
[1717032823311,2.3472,3769.2,3768.6,0.51023422]
[1717032823716,2.3472,3769.2,3768.7,0.805]
[1717032824413,2.3472,3769.2,3768.6,0.51023422]
[1717032827885,2.3472,3769.2,3768.6,1.31523422]
[1717032828583,0.805,3769.0,3767.8,7.14456594]
[1717032828900,2.3415,3768.7,3767.8,9.24745816]
[1717032830395,2.3415,3768.7,3767.9,0.805]
[1717032830786,2.3415,3768.7,3767.9,1.99515382]
[1717032832311,2.3415,3768.7,3767.9,0.805]
[1717032833056,2.65396,3768.0,3767.2,0.397113]
[1717032833340,2.65396,3768.0,3767.3,0.805]
[1717032834685,2.65396,3768.0,3767.5,0.805]
[1717032836711,2.65396,3768.0,3767.3,0.805]
[1717032837331,2.65396,3768.0,3767.2,1.29789222]
[1717032842653,2.65418,3767.7,3766.7,2.65482]
[1717032842855,2.3,3767.6,3767.0,0.805]
[1717032843171,2.3,3767.6,3767.0,2.10289222]
[1717032843673,2.3,3767.6,3767.2,0.805]
[1717032843861,2.3,3767.6,3767.2,1.01528922]
[1717032844753,2.4292,3767.9,3767.2,2.31318144]
[1717032847137,2.65407,3767.8,3767.2,2.31318144]
[1717032847779,2.65407,3767.8,3766.8,0.31306132]
[1717032848086,2.65407,3767.8,3766.9,1.29789222]
[1717032848237,2.65431,3767.5,3766.8,0.31306132]
[1717032848613,2.65431,3767.5,3767.0,0.805]
[1717032848887,2.65431,3767.5,3767.0,2.10289222]
[1717032855170,2.4219,3767.4,3766.6,3.13067322]
[1717032855384,2.4219,3767.4,3766.7,1.29789222]
[1717032856252,2.4219,3767.4,3766.6,3.13067322]
[1717032856591,2.65443,3767.3,3766.6,3.93567322]
[1717032857591,2.65443,3767.3,3766.6,0.47579322]
[1717032857786,2.65443,3767.3,3766.6,0.805]
[1717032858155,2.65443,3767.3,3766.4,0.805]
[1717032858355,2.65443,3767.3,3766.5,1.29789222]
[1717032859383,2.65443,3767.3,3766.7,0.805]
[1717032861121,2.65456,3767.1,3766.2,2.65515]
[1717032861417,2.273,3766.9,3766.3,1.29789222]
[1717032862315,2.273,3766.9,3766.3,2.10289222]
[1717032871822,2.273,3766.9,3766.3,1.29789222]
[1717032877720,0.805,3766.6,3765.8,0.14403791]
[1717032877915,2.65443,3767.3,3765.8,0.14403791]
[1717032877916,0.805,3765.9,3765.8,0.14403791]
[1717032878116,3.1948,3765.9,3765.8,0.14403791]
[1717032878613,2.3898,3765.9,3765.8,0.14403791]
[1717032900470,3.46028,3766.1,3765.8,0.14403791]
[1717032900471,2.65528,3766.1,3765.8,0.14403791]
[1717032901833,3.46028,3766.1,3765.8,0.14403791]
[1717032910979,0.805,3765.9,3765.8,0.14403791]
[1717032911979,3.0924,3765.9,3765.8,0.14403791]
[1717032912777,3.6671203,3765.9,3765.8,0.14403791]
[1717032912964,3.66711999,3765.9,3765.8,0.14403791]
[1717032914486,3.667137,3765.9,3765.8,0.14403791]
[1717032927201,3.6671404,3765.9,3765.8,0.14403791]
[1717032928694,0.5747404,3765.9,3765.8,0.14403791]
[1717032928899,0.5747175,3766.4,3765.8,0.14403791]
[1717032929209,3.46004,3766.5,3765.8,0.14403791]
[1717032930486,2.65504,3766.5,3765.8,0.14403791]
[1717032930685,3.46004,3766.5,3765.8,0.14403791]
[1717032931110,0.805,3766.3,3765.8,0.14403791]
[1717032931999,3.46004,3766.5,3765.8,0.14403791]
[1717032937887,2.65523,3766.2,3765.8,0.14403791]
[1717032938088,2.65523,3766.2,3765.9,1.3166]
[1717032938310,2.65523,3766.2,3766.0,0.14606379]
[1717032943340,2.65523,3766.2,3765.8,0.14403791]
[1717032943547,0.805,3765.9,3765.8,0.14403791]
[1717032946988,8.03664945,3765.9,3765.8,0.14403791]
[1717032947185,8.58664945,3765.9,3765.8,0.14403791]
[1717032947922,2.65555,3765.7,3764.0,1.3166]
[1717032948087,2.65555,3765.7,3764.0,2.61449222]
[1717032948088,0.805,3764.7,3764.0,2.61449222]
[1717032948288,0.805,3764.7,3764.0,2.95644144]
[1717032948719,0.805,3764.7,3764.0,1.65854922]
[1717032948921,3.46126,3764.7,3764.0,1.65854922]
[1717032949231,3.46126,3764.7,3764.0,1.65263422]
[1717032949444,3.46126,3764.7,3764.0,1.310685]
[1717032949788,3.46126,3764.7,3763.6,3.46198]
[1717032949982,0.805,3764.5,3763.7,1.29789222]
[1717032951328,3.46126,3764.7,3763.7,1.29789222]
[1717032951532,2.65626,3764.7,3763.9,0.805]
[1717032951688,2.65626,3764.7,3763.7,2.10289222]
[1717032952030,2.65626,3764.7,3763.8,0.47598722]
[1717032952236,2.65626,3764.7,3763.8,1.77387944]
[1717032953290,3.46126,3764.7,3763.8,1.77387944]
[1717032955128,2.65592,3765.2,3764.6,0.805]
[1717032955692,2.65564,3765.6,3764.7,2.75259222]
[1717032955897,2.65564,3765.6,3764.8,0.35575922]
[1717032956098,2.65564,3765.6,3764.8,1.65365144]
[1717032956547,3.46064,3765.6,3764.8,0.35575922]
[1717032956705,0.805,3765.4,3764.4,1.4547]
[1717032956909,2.65583,3765.3,3764.5,1.29789222]
[1717032958223,2.65583,3765.3,3764.5,2.10289222]
[1717032958899,2.65583,3765.3,3764.7,0.805]
[1717032959898,2.65583,3765.3,3764.4,1.4547]
[1717032960200,2.65583,3765.3,3764.5,0.805]
[1717032960405,2.65583,3765.3,3764.7,0.805]
[1717032961542,2.253,3765.7,3764.8,1.29789222]
[1717032962108,0.805,3765.6,3764.8,1.29789222]
[1717032963015,2.65552,3765.8,3764.9,1.4547]
[1717032963217,2.65552,3765.8,3765.0,0.35575922]
[1717032964365,2.65516,3766.3,3765.5,0.805]
[1717032965247,2.65516,3766.3,3765.4,0.805]
[1717032965413,2.65516,3766.3,3765.4,2.10289222]
[1717032965613,2.65516,3766.3,3765.5,0.21028922]
[1717032968714,2.6548,3766.8,3765.6,2.65561]
[1717032968914,2.6548,3766.8,3765.8,2.65544]
[1717032970206,2.6548,3766.8,3765.8,3.95333222]
[1717032971048,2.6548,3766.8,3765.8,2.65544]
[1717032972023,3.76219222,3766.7,3765.0,2.65602]
[1717032972251,1.933,3766.2,3764.3,1.4547]
[1717032972549,4.33969222,3766.1,3764.3,2.15781881]
[1717032972739,0.57476096,3766.0,3764.3,1.29789222]
[1717032972943,0.55,3765.9,3764.3,1.29789222]
[1717032973542,1.12480005,3765.9,3764.3,1.29789222]
[1717032974057,2.6558,3765.4,3764.3,1.29789222]
[1717032974216,2.6558,3765.4,3764.2,2.65659]
[1717032974217,2.65601,3765.1,3763.8,4.11156]
[1717032974419,2.65601,3765.1,3763.9,1.70904822]
[1717032978854,2.65601,3765.1,3763.9,0.411156]
[1717032979648,2.65623,3764.8,3763.9,0.411156]
[1717032985682,2.65623,3764.8,3763.4,2.65715]
[1717032985972,2.65623,3764.8,3763.5,1.29789222]
[1717032989049,2.65644,3764.5,3763.5,1.29789222]
[1717032989963,2.65611,3764.9,3763.6,2.65701]
[1717032990284,2.65611,3764.9,3763.8,1.933]
[1717032990436,2.65611,3764.9,3763.1,0.26808052]
[1717032990642,2.65611,3764.9,3763.5,2.65707]
[1717032990963,2.4701,3765.2,3763.6,1.29789222]
[1717032990964,2.6564,3764.5,3763.6,1.29789222]
[1717032992677,2.6564,3764.5,3763.7,2.65695]
[1717032992833,2.6564,3764.5,3763.7,4.35032644]
[1717032993487,2.65611,3764.9,3763.7,4.35032644]
[1717032994594,2.65611,3764.9,3764.0,2.6567]
[1717032994774,2.4701,3765.2,3764.1,1.29789222]
[1717032996201,2.4701,3765.2,3764.2,2.65655]
[1717032996415,2.65584,3765.3,3764.3,0.54091422]
[1717032999915,2.65584,3765.3,3764.4,2.65644]
[1717033000099,2.65584,3765.3,3764.4,3.95433222]
[1717033002970,2.65554,3765.8,3764.6,2.65627]
[1717033003169,3.23032203,3765.8,3764.8,2.65617]
[1717033003401,3.23032203,3765.8,3764.8,3.19704622]
[1717033004828,2.65554,3765.8,3764.8,3.19704622]
[1717033004982,3.2302715,3765.8,3764.8,3.19704622]
[1717033005181,2.65554,3765.8,3764.8,3.19704622]
[1717033005411,2.65554,3765.8,3764.9,0.44949384]
[1717033012534,2.65554,3765.8,3765.0,0.806]
[1717033013929,2.65554,3765.8,3765.0,2.10389222]
[1717033017717,2.65554,3765.8,3763.2,13.98011012]
[1717033017718,2.6557,3765.5,3764.5,1.4547]
[1717033018030,2.6557,3765.5,3764.9,0.806]
[1717033018237,4.9814,3765.5,3764.9,0.806]
[1717033018894,4.9814,3765.5,3764.5,2.75259222]
[1717033018895,4.9814,3765.5,3764.5,1.29789222]
[1717033019092,4.9814,3765.5,3764.7,0.806]
[1717033020314,2.65591,3765.2,3764.1,1.4547]
[1717033020649,2.65591,3765.2,3764.4,0.806]
[1717033022242,2.65613,3764.9,3764.1,1.4547]
[1717033022441,2.65613,3764.9,3764.3,0.806]
[1717033024226,5.12353,3764.9,3764.3,0.806]
[1717033024611,5.92953,3764.9,3763.6,2.65697]
[1717033024807,5.92953,3764.9,3764.0,0.806]
[1717033024808,5.12353,3764.9,3764.0,0.806]
[1717033025011,5.92953,3764.9,3764.0,0.806]
[1717033026142,5.12353,3764.9,3764.0,0.806]
[1717033027332,2.65613,3764.9,3764.4,0.806]
[1717033029845,2.65613,3764.9,3764.4,1.03207]
[1717033030947,2.65613,3764.9,3764.6,0.806]
[1717033031107,2.3024,3765.2,3764.6,0.806]
[1717033031309,2.4757,3765.7,3764.7,1.29789222]
[1717033031515,2.65569,3765.5,3764.6,2.65627]
[1717033031742,2.65569,3765.5,3764.9,0.806]
[1717033033142,2.65569,3765.5,3765.1,0.806]
[1717033035329,2.65569,3765.5,3764.9,0.491697]
[1717033035330,2.65569,3765.5,3764.9,1.297697]
[1717033036721,2.65569,3765.5,3765.1,0.806]
[1717033038361,2.3917,3765.8,3765.1,0.806]
[1717033038513,2.96644295,3765.8,3765.1,0.806]
[1717033039752,2.96644295,3765.8,3765.3,0.806]
[1717033040070,2.3917,3765.8,3765.3,0.806]
[1717033041023,2.65544,3765.9,3765.3,0.806]
[1717033041224,2.2998,3766.2,3765.5,0.806]
[1717033041523,2.65513,3766.3,3765.7,0.806]
[1717033042745,2.3043,3766.5,3765.9,0.806]
[1717033044248,2.65487,3766.7,3765.9,0.806]
[1717033048855,2.65487,3766.7,3766.1,0.806]
[1717033052254,2.65487,3766.7,3765.8,4.11014]
[1717033052440,2.65487,3766.7,3766.1,0.806]
[1717033053369,2.353,3766.9,3766.1,3.46124]
[1717033053558,2.353,3766.9,3766.1,2.65524]
[1717033053760,2.353,3766.9,3766.2,0.806]
[1717033053937,5.65461,3767.1,3766.2,0.806]
[1717033055566,5.65461,3767.1,3766.2,1.20620432]
[1717033057358,2.65461,3767.1,3766.2,1.20620432]
[1717033057661,2.65461,3767.1,3766.4,0.806]
[1717033059177,2.6543,3767.5,3766.5,3.95283222]
[1717033059343,2.6543,3767.5,3766.6,1.28188322]
[1717033059674,2.6543,3767.5,3766.8,0.806]
[1717033059836,2.6543,3767.5,3766.6,1.28188322]
[1717033060973,3.0,3767.9,3766.7,3.95271222]
[1717033060974,2.65402,3767.9,3766.7,3.95271222]
[1717033061175,0.806,3767.7,3766.7,3.95271222]
[1717033061500,0.806,3767.7,3766.8,0.806]
[1717033061853,2.65421,3767.6,3766.7,4.47617176]
[1717033062044,0.806,3767.5,3766.7,2.65482]
[1717033066203,2.65435,3767.4,3766.5,0.806]
[1717033068249,2.65435,3767.4,3766.3,2.65509]
[1717033068546,2.65453,3767.2,3766.3,3.46109]
[1717033068760,2.65453,3767.2,3766.5,0.806]
[1717033070673,2.2679,3767.1,3766.5,0.806]
[1717033072491,2.65453,3767.2,3766.4,1.4547]
[1717033074274,3.22904739,3767.2,3766.5,0.491579]
[1717033074474,2.65453,3767.2,3766.5,0.491579]
[1717033075375,3.22904196,3767.2,3766.5,0.491579]
[1717033079179,3.22904196,3767.2,3766.9,1.4547]
[1717033079353,2.65453,3767.2,3766.9,1.4547]
[1717033080155,2.65425,3767.6,3766.7,1.4547]
[1717033080354,2.65425,3767.6,3766.9,1.4547]
[1717033080700,2.65425,3767.6,3767.0,0.806]
[1717033081001,2.65425,3767.6,3767.1,1.4547]
[1717033082594,2.65425,3767.6,3767.1,2.2607]
[1717033082793,2.65425,3767.6,3767.1,2.51429279]
[1717033083771,2.65425,3767.6,3767.1,1.70829279]
[1717033086412,0.57443674,3767.9,3767.1,1.70829279]
[1717033086627,0.57443674,3768.0,3767.2,0.806]
[1717033087737,0.57443674,3768.0,3767.3,1.29789222]
[1717033087940,2.65392,3768.1,3767.4,0.6466645]
[1717033088830,2.65392,3768.1,3767.5,1.4547]
[1717033089793,0.57443674,3768.2,3767.6,2.10389222]
[1717033090122,2.65362,3768.5,3767.9,1.4547]
[1717033090328,2.65362,3768.5,3767.9,1.81055922]
[1717033092631,2.65332,3768.9,3768.0,0.806]
[1717033093361,2.65332,3768.9,3768.0,2.10389222]
[1717033093540,2.65332,3768.9,3768.2,0.806]
[1717033094065,2.65332,3768.9,3768.0,1.29789222]
[1717033094066,2.65332,3768.9,3768.4,0.806]
[1717033094953,2.65332,3768.9,3768.1,1.4547]
[1717033095154,2.65332,3768.9,3768.2,0.806]
[1717033096423,2.65332,3768.9,3768.2,1.19744514]
[1717033101066,2.65332,3768.9,3768.4,0.806]
[1717033101263,2.2899,3769.2,3768.4,0.806]
[1717033102382,2.65264,3769.9,3769.0,0.806]
[1717033102529,2.65264,3769.9,3769.2,0.806]
[1717033103632,2.4069,3770.1,3769.3,1.29789222]
[1717033103946,2.4069,3770.1,3769.4,0.806]
[1717033108048,2.4069,3770.1,3769.3,1.29789222]
[1717033108246,2.4069,3770.1,3769.3,2.10389222]
[1717033108451,2.4069,3770.1,3769.3,2.57958944]
[1717033108675,2.65233,3770.3,3769.5,0.806]
[1717033111785,2.65233,3770.3,3769.5,2.10389222]
[1717033111943,2.65233,3770.3,3770.0,0.806]
[1717033112358,2.3471,3770.8,3770.0,0.806]
[1717033112359,2.65205,3770.7,3770.0,0.806]
[1717033112898,2.65175,3771.1,3770.1,1.29789222]
[1717033113114,3.45775,3771.1,3770.2,2.73634222]
[1717033113257,3.45775,3771.1,3770.2,4.03423444]
[1717033113984,2.65175,3771.1,3770.3,1.29789222]
[1717033114290,2.65175,3771.1,3770.4,0.806]
[1717033116199,2.65175,3771.1,3770.4,1.20942344]
[1717033118370,2.65175,3771.1,3770.6,0.806]
[1717033120406,2.65147,3771.5,3770.7,1.4547]
[1717033120768,2.65118,3771.9,3770.8,1.29789222]
[1717033120969,2.65118,3771.9,3770.9,0.806]
[1717033121169,2.65118,3771.9,3771.0,0.491266]
[1717033121578,2.65118,3771.9,3771.0,1.78915822]
[1717033121780,3.45718,3771.9,3771.0,1.78915822]
[1717033122309,2.65135,3771.7,3771.0,1.78915822]
[1717033128945,2.65135,3771.7,3771.0,2.59515822]
[1717033129142,2.65135,3771.7,3771.1,0.40498582]
[1717033129329,2.65135,3771.7,3771.2,1.29789222]
[1717033130469,2.65135,3771.7,3771.2,2.10389222]
[1717033130681,2.65108,3772.1,3771.3,1.4547]
[1717033130851,2.65108,3772.1,3771.4,1.29789222]
[1717033131047,2.65108,3772.1,3771.4,1.69425002]
[1717033132470,2.65108,3772.1,3771.4,2.50025002]
[1717033132640,2.6508,3772.5,3771.6,0.806]
[1717033132845,2.65099,3772.2,3771.6,1.29789222]
[1717033133052,2.65099,3772.2,3771.7,0.250025]
[1717033133900,2.65065,3772.7,3771.8,2.10389222]
[1717033134081,2.65065,3772.7,3772.1,0.806]
[1717033134256,2.65065,3772.7,3772.1,2.10389222]
[1717033135274,2.65065,3772.7,3772.2,0.35585922]
[1717033137619,2.4802,3772.6,3771.7,0.250025]
[1717033137795,2.4802,3772.6,3771.3,0.806]
[1717033137796,0.806,3772.3,3771.3,0.806]
[1717033137996,0.806,3772.3,3771.5,1.29789222]
[1717033138403,2.65099,3772.2,3771.5,1.29789222]
[1717033138604,2.65099,3772.2,3771.6,0.250025]
[1717033138835,2.65099,3772.2,3771.6,1.54791722]
[1717033139175,2.65099,3772.2,3771.6,0.250025]
[1717033139375,2.65099,3772.2,3771.2,0.806]
[1717033139683,2.65099,3772.2,3771.3,1.29789222]
[1717033140814,5.09491,3771.9,3771.3,1.29789222]
[1717033141005,5.90091,3771.9,3771.3,1.29789222]
[1717033141521,5.09491,3771.9,3771.3,1.29789222]
[1717033141824,5.09491,3771.9,3771.4,0.21038922]
[1717033147719,2.65143,3771.6,3770.8,0.806]
[1717033147939,2.65143,3771.6,3770.9,1.29789222]
[1717033148424,2.65143,3771.6,3771.0,0.806]
[1717033148607,2.65115,3772.0,3771.5,2.2607]
[1717033148808,2.65086,3772.4,3771.8,0.806]
[1717033149118,2.65086,3772.4,3772.2,0.806]
[1717033149592,2.65086,3772.4,3772.0,0.806]
[1717033149792,2.65086,3772.4,3772.1,0.21038922]
[1717033151799,2.65058,3772.8,3772.2,1.29789222]
[1717033152185,2.65058,3772.8,3772.2,2.10389222]
[1717033152386,2.65058,3772.8,3772.2,1.29789222]
[1717033152689,2.65058,3772.8,3772.3,0.15082814]
[1717033152889,2.65058,3772.8,3772.3,1.44872036]
[1717033162269,2.65031,3773.2,3772.4,1.29789222]
[1717033163371,0.57356486,3773.6,3772.4,3.94870222]
[1717033163545,0.57356486,3773.6,3772.6,1.4547]
[1717033163752,2.65006,3773.5,3772.7,1.29789222]
[1717033167374,2.65028,3773.2,3772.5,0.40995304]
[1717033167579,2.65042,3773.0,3772.3,0.15082814]
[1717033167740,2.65042,3773.0,3772.0,2.65106]
[1717033167942,2.3178,3773.1,3772.1,1.29789222]
[1717033168198,1.926,3773.5,3771.8,1.4547]
[1717033168199,2.65064,3772.7,3771.8,1.4547]
[1717033168528,2.65076,3772.5,3771.9,1.29789222]
[1717033169316,2.65076,3772.5,3771.4,1.4547]
[1717033169533,2.65076,3772.5,3771.5,2.61558181]
[1717033169735,2.65102,3772.2,3771.5,1.31768959]
[1717033169906,2.65102,3772.2,3771.2,2.65163]
[1717033170238,2.65102,3772.2,3771.3,1.29789222]
[1717033170432,4.9685,3772.6,3771.4,2.65149]
[1717033170632,2.6507,3772.6,3771.7,1.4547]
[1717033170935,2.6507,3772.6,3771.8,1.29789222]
[1717033171111,2.6507,3772.6,3771.9,0.54039522]
[1717033171310,2.6507,3772.6,3771.9,1.83828744]
[1717033176042,3.4537,3772.6,3771.9,1.83828744]
[1717033176410,2.6507,3772.6,3771.9,1.83828744]
[1717033178723,0.57368866,3772.7,3772.0,2.10089222]
[1717033179020,0.57368866,3772.9,3772.1,0.26412874]
[1717033179221,3.22412866,3773.0,3772.2,1.29789222]
[1717033179870,2.65055,3772.8,3772.2,1.29789222]
[1717033180165,3.22423866,3772.8,3772.3,0.2365021]
[1717033180369,3.22423866,3772.8,3772.4,1.29789222]
[1717033181160,2.65055,3772.8,3772.4,1.29789222]
[1717033183755,0.57361706,3773.0,3772.6,0.803]
[1717033184258,2.6503,3773.2,3772.6,0.803]
[1717033184558,2.6503,3773.2,3772.7,0.21008922]
[1717033185742,3.22386559,3773.2,3772.7,0.21008922]
[1717033186253,3.22386559,3773.2,3772.4,1.29789222]
[1717033187358,0.803,3772.8,3771.9,4.64624522]
[1717033187562,2.3586,3772.9,3771.9,0.54039522]
[1717033187563,2.65076,3772.5,3771.9,0.54039522]
[1717033187859,2.3586,3773.6,3772.1,1.4547]
[1717033188168,0.803,3772.9,3772.1,2.75259222]
[1717033188337,2.65074,3772.6,3771.7,1.4547]
[1717033188530,2.65074,3772.6,3771.8,1.29789222]